[Event "Titled Tuesday Blitz November 08 Early 2022"]
[White "Dehtiarov, Roman"]
[Black "Fajdetic, Hrvoje"]
[WhiteFideId "14186640"]
[BlackFideId "14501945"]
[WhiteElo "2200"]
[BlackElo "2172"]
[Result "1-0"]
[Round "01"]
[TimeControl "180+1"]
[Date "2022.11.09"]
[WhiteClock "0:00:05"]
[BlackClock "0:00:06"]

1. e4 {[%clk 0:02:57]}  e6 {[%clk 0:02:59]} 2. d3 {[%clk 0:02:56]}  d5 {[%clk 0:03:00]} 3. Nd2 {[%clk 0:02:54]}  dxe4 {[%clk 0:02:59]} 4. Nxe4 {[%clk 0:02:55]}  Nd7 {[%clk 0:02:59]} 5. g3 {[%clk 0:02:53]}  Ngf6 {[%clk 0:02:59]} 6. Bg2 {[%clk 0:02:52]}  Be7 {[%clk 0:02:59]} 7. Ne2 {[%clk 0:02:52]}  O-O {[%clk 0:02:59]} 8. O-O {[%clk 0:02:46]}  Rb8 {[%clk 0:02:59]} 9. N2c3 {[%clk 0:02:45]}  b6 {[%clk 0:02:59]} 10. Be3 {[%clk 0:02:42]}  Bb7 {[%clk 0:02:59]} 11. Qd2 {[%clk 0:02:38]}  a6 {[%clk 0:02:58]} 12. Rad1 {[%clk 0:02:28]}  Ng4 {[%clk 0:02:54]} 13. h3 {[%clk 0:02:23]}  Nxe3 {[%clk 0:02:54]} 14. Qxe3 {[%clk 0:02:24]}  Nf6 {[%clk 0:02:52]} 15. Rfe1 {[%clk 0:02:20]}  c5 {[%clk 0:02:50]} 16. d4 {[%clk 0:02:15]}  Nxe4 {[%clk 0:02:46]} 17. Nxe4 {[%clk 0:02:13]}  Qc7 {[%clk 0:02:36]} 18. c3 {[%clk 0:02:01]}  Rfd8 {[%clk 0:02:27]} 19. dxc5 {[%clk 0:01:54]}  Bxe4 {[%clk 0:02:25]} 20. Qxe4 {[%clk 0:01:20]}  Qxc5 {[%clk 0:02:20]} 21. Bf1 {[%clk 0:01:16]}  b5 {[%clk 0:02:14]} 22. a3 {[%clk 0:01:15]}  Bf6 {[%clk 0:02:13]} 23. Qf3 {[%clk 0:01:06]}  a5 {[%clk 0:02:08]} 24. Rxd8+ {[%clk 0:01:03]}  Rxd8 {[%clk 0:02:07]} 25. Qb7 {[%clk 0:01:03]}  b4 {[%clk 0:02:05]} 26. axb4 {[%clk 0:01:03]}  axb4 {[%clk 0:02:05]} 27. Qxb4 {[%clk 0:00:59]}  Qxb4 {[%clk 0:02:05]} 28. cxb4 {[%clk 0:01:00]}  Bxb2 {[%clk 0:02:01]} 29. b5 {[%clk 0:00:59]}  Rd2 {[%clk 0:01:50]} 30. b6 {[%clk 0:00:44]}  Bd4 {[%clk 0:01:44]} 31. b7 {[%clk 0:00:44]}  Bxf2+ {[%clk 0:01:41]} 32. Kh1 {[%clk 0:00:43]}  Bxg3 {[%clk 0:01:15]} 33. Rc1 {[%clk 0:00:34]}  g6 {[%clk 0:01:00]} 34. Rc8+ {[%clk 0:00:32]}  Kg7 {[%clk 0:01:00]} 35. b8=Q {[%clk 0:00:32]}  Bxb8 {[%clk 0:00:58]} 36. Rxb8 {[%clk 0:00:33]}  h5 {[%clk 0:00:57]} 37. Bg2 {[%clk 0:00:28]}  f5 {[%clk 0:00:51]} 38. Kg1 {[%clk 0:00:25]}  g5 {[%clk 0:00:48]} 39. Rb6 {[%clk 0:00:24]}  Kf6 {[%clk 0:00:47]} 40. Rb4 {[%clk 0:00:24]}  g4 {[%clk 0:00:44]} 41. hxg4 {[%clk 0:00:19]}  hxg4 {[%clk 0:00:45]} 42. Kh2 {[%clk 0:00:17]}  e5 {[%clk 0:00:41]} 43. Kg1 {[%clk 0:00:17]}  Kg5 {[%clk 0:00:35]} 44. Rb5 {[%clk 0:00:17]}  Kf4 {[%clk 0:00:29]} 45. Bb7 {[%clk 0:00:12]}  Re2 {[%clk 0:00:13]} 46. Bc8 {[%clk 0:00:08]}  Re3 {[%clk 0:00:12]} 47. Rb4+ {[%clk 0:00:07]}  Re4 {[%clk 0:00:10]} 48. Rb5 {[%clk 0:00:07]}  Re2 {[%clk 0:00:09]} 49. Kf1 {[%clk 0:00:07]}  Rc2 {[%clk 0:00:09]} 50. Bd7 {[%clk 0:00:07]}  Rd2 {[%clk 0:00:08]} 51. Be6 {[%clk 0:00:07]}  Rd6 {[%clk 0:00:08]} 52. Bc8 {[%clk 0:00:05]}  Rd8 {[%clk 0:00:08]} 53. Bb7 {[%clk 0:00:05]}  e4 {[%clk 0:00:07]} 54. Kf2 {[%clk 0:00:03]}  Rd2+ {[%clk 0:00:07]} 55. Kf1 {[%clk 0:00:03]}  Kf3 {[%clk 0:00:06]} 56. Rb3+ {[%clk 0:00:03]}  Kf4 {[%clk 0:00:05]} 57. Rb5 {[%clk 0:00:03]}  Rd8 {[%clk 0:00:03]} 58. Kf2 {[%clk 0:00:02]}  g3+ {[%clk 0:00:03]} 59. Kg1 {[%clk 0:00:02]}  Kf3 {[%clk 0:00:02]} 60. Rxf5+ {[%clk 0:00:02]}  Kg4 {[%clk 0:00:03]} 61. Re5 {[%clk 0:00:02]}  Kf3 {[%clk 0:00:03]} 62. Bxe4+ {[%clk 0:00:02]}  Kf4 {[%clk 0:00:03]} 63. Re7 {[%clk 0:00:02]}  Rd1+ {[%clk 0:00:04]} 64. Kg2 {[%clk 0:00:03]}  Re1 {[%clk 0:00:05]} 65. Rf7+ {[%clk 0:00:02]}  Kg5 {[%clk 0:00:05]} 66. Bf3 {[%clk 0:00:03]}  Re5 {[%clk 0:00:05]} 67. Ra7 {[%clk 0:00:03]}  Kg6 {[%clk 0:00:06]} 68. Kxg3 {[%clk 0:00:03]}  Rg5+ {[%clk 0:00:07]} 69. Kf4 {[%clk 0:00:04]}  Rf5+ {[%clk 0:00:07]} 70. Ke3 {[%clk 0:00:04]}  Rf6 {[%clk 0:00:08]} 71. Be4+ {[%clk 0:00:05]}  Kg5 {[%clk 0:00:08]} 72. Ra5+ {[%clk 0:00:05]}  Kh6 {[%clk 0:00:08]} 73. Ra1 {[%clk 0:00:05]}  Kg7 {[%clk 0:00:08]} 74. Rg1+ {[%clk 0:00:04]}  Kf7 {[%clk 0:00:09]} 75. Kd4 {[%clk 0:00:05]}  Ke7 {[%clk 0:00:09]} 76. Bd5 {[%clk 0:00:04]}  Rf4+ {[%clk 0:00:09]} 77. Ke5 {[%clk 0:00:04]}  Rf2 {[%clk 0:00:08]} 78. Rg7+ {[%clk 0:00:05]}  Kf8 {[%clk 0:00:08]} 79. Ra7 {[%clk 0:00:05]}  Re2+ {[%clk 0:00:07]} 80. Be4 {[%clk 0:00:05]}  Re1 {[%clk 0:00:07]} 81. Kf6 {[%clk 0:00:05]}  Rf1+ {[%clk 0:00:06]} 82. Bf5 {[%clk 0:00:05]}  Ke8 {[%clk 0:00:06]} 83. Ra8# {[%clk 0:00:05]} 1-0


[Site "https://www.chess.com"]

[Event "Titled Tuesday Blitz November 08 Early 2022"]
[White "Devaev, Alexander"]
[Black "Molina, Roberto Junio Brito"]
[WhiteFideId "4169395"]
[BlackFideId "2109450"]
[WhiteElo "2225"]
[BlackElo "2388"]
[Result "1/2-1/2"]
[Round "01"]
[TimeControl "180+1"]
[Date "2022.11.09"]
[WhiteClock "0:01:05"]
[BlackClock "0:00:15"]

1. Nf3 {[%clk 0:02:54]}  d5 {[%clk 0:02:59]} 2. c4 {[%clk 0:02:53]}  d4 {[%clk 0:02:57]} 3. b3 {[%clk 0:02:53]}  c5 {[%clk 0:02:56]} 4. Bb2 {[%clk 0:02:53]}  Nc6 {[%clk 0:02:57]} 5. e3 {[%clk 0:02:54]}  e5 {[%clk 0:02:56]} 6. exd4 {[%clk 0:02:54]}  cxd4 {[%clk 0:02:56]} 7. d3 {[%clk 0:02:52]}  Bd6 {[%clk 0:02:53]} 8. a3 {[%clk 0:02:51]}  a5 {[%clk 0:02:53]} 9. Nbd2 {[%clk 0:02:51]}  Nf6 {[%clk 0:02:52]} 10. g3 {[%clk 0:02:51]}  O-O {[%clk 0:02:52]} 11. Bg2 {[%clk 0:02:52]}  Re8 {[%clk 0:02:52]} 12. O-O {[%clk 0:02:52]}  Bf5 {[%clk 0:02:52]} 13. Ne1 {[%clk 0:02:42]}  Qe7 {[%clk 0:02:45]} 14. Ne4 {[%clk 0:02:41]}  Nxe4 {[%clk 0:02:44]} 15. Bxe4 {[%clk 0:02:40]}  Bxe4 {[%clk 0:02:43]} 16. dxe4 {[%clk 0:02:41]}  g6 {[%clk 0:02:37]} 17. Nd3 {[%clk 0:02:38]}  b6 {[%clk 0:02:36]} 18. Kh1 {[%clk 0:02:18]}  f5 {[%clk 0:02:34]} 19. Qe2 {[%clk 0:02:15]}  Qb7 {[%clk 0:02:26]} 20. Rae1 {[%clk 0:02:10]}  Re7 {[%clk 0:02:21]} 21. f3 {[%clk 0:01:56]}  Rf8 {[%clk 0:02:20]} 22. Bc1 {[%clk 0:01:50]}  b5 {[%clk 0:02:11]} 23. c5 {[%clk 0:01:50]}  Bb8 {[%clk 0:02:10]} 24. b4 {[%clk 0:01:50]}  axb4 {[%clk 0:02:06]} 25. axb4 {[%clk 0:01:51]}  Kg7 {[%clk 0:02:02]} 26. Qa2 {[%clk 0:01:51]}  h6 {[%clk 0:01:58]} 27. Kg1 {[%clk 0:01:47]}  Ref7 {[%clk 0:01:52]} 28. Bd2 {[%clk 0:01:42]}  Qd7 {[%clk 0:01:44]} 29. Qd5 {[%clk 0:01:41]}  Rd8 {[%clk 0:01:35]} 30. Qxd7 {[%clk 0:01:35]}  Rdxd7 {[%clk 0:01:36]} 31. Ra1 {[%clk 0:01:35]}  Ra7 {[%clk 0:01:33]} 32. Kg2 {[%clk 0:01:24]}  h5 {[%clk 0:01:25]} 33. Rfb1 {[%clk 0:01:21]}  Kf6 {[%clk 0:01:24]} 34. h4 {[%clk 0:01:17]}  fxe4 {[%clk 0:01:18]} 35. fxe4 {[%clk 0:01:16]}  Ke6 {[%clk 0:01:18]} 36. Bg5 {[%clk 0:01:13]}  Kd7 {[%clk 0:00:37]} 37. Rxa7+ {[%clk 0:01:09]}  Nxa7 {[%clk 0:00:37]} 38. Rf1 {[%clk 0:01:08]}  Rxf1 {[%clk 0:00:36]} 39. Kxf1 {[%clk 0:01:08]}  Nc6 {[%clk 0:00:35]} 40. Kf2 {[%clk 0:01:08]}  Bc7 {[%clk 0:00:35]} 41. Kf3 {[%clk 0:01:08]}  Bd8 {[%clk 0:00:36]} 42. g4 {[%clk 0:01:06]}  Bxg5 {[%clk 0:00:32]} 43. hxg5 {[%clk 0:01:05]}  hxg4+ {[%clk 0:00:25]} 44. Kxg4 {[%clk 0:01:06]}  Ke6 {[%clk 0:00:25]} 45. Kh4 {[%clk 0:01:06]}  Ke7 {[%clk 0:00:26]} 46. Kg4 {[%clk 0:01:07]}  Kf7 {[%clk 0:00:26]} 47. Kh4 {[%clk 0:01:07]}  Ke6 {[%clk 0:00:27]} 48. Kg4 {[%clk 0:01:08]}  Kd7 {[%clk 0:00:27]} 49. Kh4 {[%clk 0:01:08]}  Ke8 {[%clk 0:00:27]} 50. Kg4 {[%clk 0:01:09]}  Kf8 {[%clk 0:00:27]} 51. Kh4 {[%clk 0:01:09]}  Kf7 {[%clk 0:00:25]} 52. Kg4 {[%clk 0:01:07]}  Ke6 {[%clk 0:00:25]} 53. Kh4 {[%clk 0:01:06]}  Ke7 {[%clk 0:00:18]} 54. Kg4 {[%clk 0:01:05]}  Ke6 {[%clk 0:00:15]} 1/2-1/2


[Site "https://www.chess.com"]

[Event "Titled Tuesday Blitz November 08 Early 2022"]
[White "Dominguez Perez, Leinier"]
[Black "Kirillov, Dmitry"]
[WhiteFideId "3503240"]
[BlackFideId "34180572"]
[WhiteElo "2647"]
[BlackElo "2095"]
[Result "1-0"]
[Round "01"]
[TimeControl "180+1"]
[Date "2022.11.08"]
[WhiteClock "0:00:06"]
[BlackClock "0:00:06"]

1. e4 {[%clk 0:02:57]}  c6 {[%clk 0:02:59]} 2. d4 {[%clk 0:02:57]}  d5 {[%clk 0:03:00]} 3. e5 {[%clk 0:02:56]}  c5 {[%clk 0:03:00]} 4. Nf3 {[%clk 0:02:57]}  Nc6 {[%clk 0:03:01]} 5. dxc5 {[%clk 0:02:56]}  Bg4 {[%clk 0:03:00]} 6. c3 {[%clk 0:02:53]}  e6 {[%clk 0:03:00]} 7. Be3 {[%clk 0:02:53]}  Bxf3 {[%clk 0:03:00]} 8. Qxf3 {[%clk 0:02:51]}  Nxe5 {[%clk 0:03:00]} 9. Bb5+ {[%clk 0:02:51]}  Nc6 {[%clk 0:03:01]} 10. Nd2 {[%clk 0:02:48]}  Nf6 {[%clk 0:02:59]} 11. O-O {[%clk 0:02:46]}  Be7 {[%clk 0:02:58]} 12. b4 {[%clk 0:02:47]}  a6 {[%clk 0:02:40]} 13. Ba4 {[%clk 0:02:35]}  O-O {[%clk 0:02:40]} 14. a3 {[%clk 0:02:24]}  Qc7 {[%clk 0:02:36]} 15. h3 {[%clk 0:02:17]}  Rfd8 {[%clk 0:02:15]} 16. Nb3 {[%clk 0:01:54]}  e5 {[%clk 0:02:13]} 17. Rfd1 {[%clk 0:01:48]}  e4 {[%clk 0:01:56]} 18. Qe2 {[%clk 0:01:48]}  Nd7 {[%clk 0:01:52]} 19. Rxd5 {[%clk 0:01:45]}  Nf6 {[%clk 0:01:48]} 20. Rxd8+ {[%clk 0:01:43]}  Rxd8 {[%clk 0:01:49]} 21. Nd4 {[%clk 0:01:41]}  Nd5 {[%clk 0:01:36]} 22. Nxc6 {[%clk 0:01:30]}  bxc6 {[%clk 0:01:36]} 23. Bd4 {[%clk 0:01:25]}  Bf6 {[%clk 0:01:34]} 24. Bxf6 {[%clk 0:01:21]}  Nxf6 {[%clk 0:01:35]} 25. Rd1 {[%clk 0:01:09]}  h6 {[%clk 0:01:19]} 26. Qxa6 {[%clk 0:00:54]}  Rxd1+ {[%clk 0:01:05]} 27. Bxd1 {[%clk 0:00:55]}  Qe5 {[%clk 0:01:05]} 28. Qc4 {[%clk 0:00:51]}  e3 {[%clk 0:01:01]} 29. Bf3 {[%clk 0:00:45]}  Nd5 {[%clk 0:00:54]} 30. Qd4 {[%clk 0:00:39]}  exf2+ {[%clk 0:00:54]} 31. Kxf2 {[%clk 0:00:39]}  Qf5 {[%clk 0:00:55]} 32. Qe4 {[%clk 0:00:31]}  Qg5 {[%clk 0:00:48]} 33. Qe8+ {[%clk 0:00:27]}  Kh7 {[%clk 0:00:47]} 34. Bxd5 {[%clk 0:00:26]}  Qxd5 {[%clk 0:00:46]} 35. Qe3 {[%clk 0:00:25]}  Qa2+ {[%clk 0:00:42]} 36. Kg1 {[%clk 0:00:25]}  Qxa3 {[%clk 0:00:43]} 37. Qe4+ {[%clk 0:00:24]}  g6 {[%clk 0:00:40]} 38. Qxc6 {[%clk 0:00:24]}  Qc1+ {[%clk 0:00:31]} 39. Kh2 {[%clk 0:00:24]}  Qf4+ {[%clk 0:00:30]} 40. g3 {[%clk 0:00:25]}  Qd2+ {[%clk 0:00:28]} 41. Qg2 {[%clk 0:00:25]}  Qxc3 {[%clk 0:00:29]} 42. Qf2 {[%clk 0:00:24]}  Qxb4 {[%clk 0:00:27]} 43. Qxf7+ {[%clk 0:00:23]}  Kh8 {[%clk 0:00:26]} 44. Qe8+ {[%clk 0:00:23]}  Kh7 {[%clk 0:00:24]} 45. Qe7+ {[%clk 0:00:23]}  Kh8 {[%clk 0:00:23]} 46. Qf6+ {[%clk 0:00:21]}  Kh7 {[%clk 0:00:22]} 47. Qf2 {[%clk 0:00:22]}  Qc4 {[%clk 0:00:21]} 48. h4 {[%clk 0:00:22]}  h5 {[%clk 0:00:20]} 49. Qe3 {[%clk 0:00:21]}  Kg7 {[%clk 0:00:19]} 50. Kg2 {[%clk 0:00:20]}  Qc2+ {[%clk 0:00:18]} 51. Kf3 {[%clk 0:00:20]}  Qf5+ {[%clk 0:00:17]} 52. Ke2 {[%clk 0:00:21]}  Qc2+ {[%clk 0:00:17]} 53. Ke1 {[%clk 0:00:21]}  Qb1+ {[%clk 0:00:17]} 54. Kd2 {[%clk 0:00:22]}  Qb2+ {[%clk 0:00:17]} 55. Kd3 {[%clk 0:00:22]}  Qb1+ {[%clk 0:00:15]} 56. Kd4 {[%clk 0:00:22]}  Qd1+ {[%clk 0:00:14]} 57. Qd3 {[%clk 0:00:21]}  Qg4+ {[%clk 0:00:15]} 58. Kc3 {[%clk 0:00:20]}  Qe6 {[%clk 0:00:11]} 59. Qd4+ {[%clk 0:00:19]}  Kh7 {[%clk 0:00:12]} 60. Kb4 {[%clk 0:00:17]}  Qc6 {[%clk 0:00:11]} 61. Qc4 {[%clk 0:00:15]}  Qb7+ {[%clk 0:00:08]} 62. Ka4 {[%clk 0:00:12]}  Qa8+ {[%clk 0:00:08]} 63. Kb3 {[%clk 0:00:11]}  Qb7+ {[%clk 0:00:08]} 64. Qb4 {[%clk 0:00:10]}  Qf3+ {[%clk 0:00:08]} 65. Qc3 {[%clk 0:00:09]}  Qb7+ {[%clk 0:00:09]} 66. Ka2 {[%clk 0:00:09]}  Qa6+ {[%clk 0:00:09]} 67. Kb2 {[%clk 0:00:09]}  Qb7+ {[%clk 0:00:10]} 68. Kc2 {[%clk 0:00:08]}  Qg2+ {[%clk 0:00:10]} 69. Kb3 {[%clk 0:00:08]}  Qb7+ {[%clk 0:00:11]} 70. Qb4 {[%clk 0:00:08]}  Qf3+ {[%clk 0:00:11]} 71. Ka4 {[%clk 0:00:08]}  Qxg3 {[%clk 0:00:07]} 72. c6 {[%clk 0:00:07]}  Qc7 {[%clk 0:00:06]} 73. Qb7 {[%clk 0:00:06]} 1-0


[Site "https://www.chess.com"]

[Event "Titled Tuesday Blitz November 08 Early 2022"]
[White "Donskov, Anatoly"]
[Black "Jiang, Andrew"]
[WhiteFideId "24143413"]
[BlackFideId "30953510"]
[WhiteElo "2219"]
[BlackElo "1868"]
[Result "0-1"]
[Round "01"]
[TimeControl "180+1"]
[Date "2022.11.09"]
[WhiteClock "0:00:45"]
[BlackClock "0:00:37"]

1. e4 {[%clk 0:02:58]}  e5 {[%clk 0:02:55]} 2. Nf3 {[%clk 0:02:55]}  Nc6 {[%clk 0:02:54]} 3. Bb5 {[%clk 0:02:55]}  a6 {[%clk 0:02:53]} 4. Ba4 {[%clk 0:02:55]}  Nf6 {[%clk 0:02:53]} 5. Qe2 {[%clk 0:02:56]}  b5 {[%clk 0:02:41]} 6. Bb3 {[%clk 0:02:56]}  Be7 {[%clk 0:02:39]} 7. c3 {[%clk 0:02:55]}  O-O {[%clk 0:02:35]} 8. O-O {[%clk 0:02:56]}  d6 {[%clk 0:02:36]} 9. Rd1 {[%clk 0:02:56]}  Na5 {[%clk 0:02:35]} 10. Bc2 {[%clk 0:02:55]}  c5 {[%clk 0:02:35]} 11. d4 {[%clk 0:02:55]}  Qc7 {[%clk 0:02:35]} 12. d5 {[%clk 0:02:56]}  Bd7 {[%clk 0:02:29]} 13. Nbd2 {[%clk 0:02:55]}  Nb7 {[%clk 0:02:18]} 14. Nf1 {[%clk 0:02:52]}  c4 {[%clk 0:02:16]} 15. Ng3 {[%clk 0:02:45]}  Nc5 {[%clk 0:02:14]} 16. b4 {[%clk 0:02:45]}  cxb3 {[%clk 0:02:04]} 17. axb3 {[%clk 0:02:46]}  a5 {[%clk 0:02:02]} 18. Bg5 {[%clk 0:02:32]}  h6 {[%clk 0:01:55]} 19. Bd2 {[%clk 0:02:24]}  a4 {[%clk 0:01:54]} 20. b4 {[%clk 0:02:19]}  Nb3 {[%clk 0:01:54]} 21. Bxb3 {[%clk 0:02:13]}  axb3 {[%clk 0:01:54]} 22. Rab1 {[%clk 0:02:12]}  Qc4 {[%clk 0:01:53]} 23. Be1 {[%clk 0:01:53]}  Qxe2 {[%clk 0:01:40]} 24. Nxe2 {[%clk 0:01:54]}  Nxe4 {[%clk 0:01:34]} 25. Rxb3 {[%clk 0:01:54]}  f5 {[%clk 0:01:28]} 26. Nd2 {[%clk 0:01:50]}  Nf6 {[%clk 0:01:22]} 27. Nf1 {[%clk 0:01:46]}  Bc8 {[%clk 0:01:20]} 28. f4 {[%clk 0:01:44]}  Rd8 {[%clk 0:01:12]} 29. Ne3 {[%clk 0:01:42]}  g6 {[%clk 0:01:05]} 30. Bg3 {[%clk 0:01:42]}  Nh5 {[%clk 0:01:02]} 31. Kf2 {[%clk 0:01:32]}  Ra2 {[%clk 0:00:58]} 32. Kf3 {[%clk 0:01:21]}  exf4 {[%clk 0:00:49]} 33. Nxf4 {[%clk 0:01:13]}  Nxf4 {[%clk 0:00:46]} 34. Bxf4 {[%clk 0:00:51]}  g5 {[%clk 0:00:46]} 35. g3 {[%clk 0:00:47]}  g4+ {[%clk 0:00:40]} 36. Nxg4 {[%clk 0:00:46]}  fxg4+ {[%clk 0:00:41]} 37. Ke3 {[%clk 0:00:46]}  Bf6 {[%clk 0:00:40]} 38. Bxh6 {[%clk 0:00:45]}  Re8+ {[%clk 0:00:37]} 39. Kf4 {[%clk 0:00:45]}  Rf2# {[%clk 0:00:37]} 0-1


[Site "https://www.chess.com"]

[Event "Titled Tuesday Blitz November 08 Early 2022"]
[White "Farmani Anosheh, Armin"]
[Black "Concio, Michael Jr."]
[WhiteFideId "24613240"]
[BlackFideId "5217873"]
[WhiteElo "2289"]
[BlackElo "2236"]
[Result "0-1"]
[Round "01"]
[TimeControl "180+1"]
[Date "2022.11.09"]
[WhiteClock "0:00:13"]
[BlackClock "0:00:19"]

1. d4 {[%clk 0:03:00]}  Nf6 {[%clk 0:02:59]} 2. c4 {[%clk 0:03:00]}  e6 {[%clk 0:02:56]} 3. Nf3 {[%clk 0:03:00]}  Bb4+ {[%clk 0:02:56]} 4. Nbd2 {[%clk 0:03:00]}  O-O {[%clk 0:02:54]} 5. a3 {[%clk 0:03:00]}  Be7 {[%clk 0:02:54]} 6. e4 {[%clk 0:03:00]}  c5 {[%clk 0:02:51]} 7. d5 {[%clk 0:02:21]}  d6 {[%clk 0:02:49]} 8. dxe6 {[%clk 0:02:21]}  Bxe6 {[%clk 0:02:47]} 9. Bd3 {[%clk 0:02:20]}  Nc6 {[%clk 0:02:47]} 10. O-O {[%clk 0:02:20]}  Nd7 {[%clk 0:02:42]} 11. b3 {[%clk 0:02:06]}  Nde5 {[%clk 0:02:36]} 12. Be2 {[%clk 0:02:06]}  Bf6 {[%clk 0:02:35]} 13. Ra2 {[%clk 0:02:06]}  a6 {[%clk 0:02:21]} 14. Bb2 {[%clk 0:02:06]}  Rb8 {[%clk 0:02:21]} 15. Qc2 {[%clk 0:01:36]}  Qe7 {[%clk 0:02:06]} 16. Rd1 {[%clk 0:01:35]}  b5 {[%clk 0:01:59]} 17. h3 {[%clk 0:01:19]}  Rfc8 {[%clk 0:01:54]} 18. Ba1 {[%clk 0:01:12]}  h6 {[%clk 0:01:36]} 19. Nxe5 {[%clk 0:00:26]}  dxe5 {[%clk 0:01:34]} 20. cxb5 {[%clk 0:00:21]}  axb5 {[%clk 0:01:31]} 21. Nf3 {[%clk 0:00:20]}  Nd4 {[%clk 0:01:14]} 22. Nxd4 {[%clk 0:00:20]}  cxd4 {[%clk 0:00:44]} 23. Qb1 {[%clk 0:00:19]}  Rc7 {[%clk 0:00:29]} 24. Bd3 {[%clk 0:00:19]}  Bg5 {[%clk 0:00:24]} 25. Rc2 {[%clk 0:00:18]}  Rxc2 {[%clk 0:00:24]} 26. Qxc2 {[%clk 0:00:19]}  Qxa3 {[%clk 0:00:24]} 27. Qc7 {[%clk 0:00:18]}  Rc8 {[%clk 0:00:23]} 28. Qb7 {[%clk 0:00:14]}  Qxb3 {[%clk 0:00:23]} 29. Be2 {[%clk 0:00:14]}  Qc2 {[%clk 0:00:22]} 30. Bf3 {[%clk 0:00:14]}  Qc6 {[%clk 0:00:19]} 31. Qa7 {[%clk 0:00:13]}  Ra8 {[%clk 0:00:19]} 0-1


[Site "https://www.chess.com"]

[Event "Titled Tuesday Blitz November 08 Early 2022"]
[White "Garcia Ramos, Daniel"]
[Black "Zainullina, Nataliya"]
[WhiteFideId "32010311"]
[BlackFideId "4145488"]
[WhiteElo "2357"]
[BlackElo "2075"]
[Result "1-0"]
[Round "01"]
[TimeControl "180+1"]
[Date "2022.11.09"]
[WhiteClock "0:00:05"]
[BlackClock "0:00:02"]

1. e4 {[%clk 0:02:54]}  c6 {[%clk 0:02:50]} 2. d4 {[%clk 0:02:48]}  d5 {[%clk 0:02:50]} 3. Nd2 {[%clk 0:02:46]}  dxe4 {[%clk 0:02:49]} 4. Nxe4 {[%clk 0:02:46]}  Nf6 {[%clk 0:02:50]} 5. Nxf6+ {[%clk 0:02:44]}  exf6 {[%clk 0:02:49]} 6. c3 {[%clk 0:02:44]}  Bd6 {[%clk 0:02:50]} 7. Bd3 {[%clk 0:02:45]}  Na6 {[%clk 0:02:49]} 8. Ne2 {[%clk 0:02:40]}  Nc7 {[%clk 0:02:48]} 9. O-O {[%clk 0:02:34]}  O-O {[%clk 0:02:47]} 10. Qc2 {[%clk 0:02:29]}  g6 {[%clk 0:02:41]} 11. Bf4 {[%clk 0:02:23]}  Nd5 {[%clk 0:02:40]} 12. Bxd6 {[%clk 0:02:22]}  Qxd6 {[%clk 0:02:41]} 13. Rad1 {[%clk 0:02:18]}  Bg4 {[%clk 0:02:39]} 14. Rfe1 {[%clk 0:02:14]}  Bxe2 {[%clk 0:02:39]} 15. Bxe2 {[%clk 0:02:11]}  Rfe8 {[%clk 0:02:37]} 16. Bf3 {[%clk 0:02:11]}  Re7 {[%clk 0:02:17]} 17. Rxe7 {[%clk 0:01:59]}  Qxe7 {[%clk 0:02:15]} 18. c4 {[%clk 0:01:56]}  Nf4 {[%clk 0:02:08]} 19. g3 {[%clk 0:01:51]}  Nh3+ {[%clk 0:02:06]} 20. Kg2 {[%clk 0:01:48]}  Ng5 {[%clk 0:02:03]} 21. Rd3 {[%clk 0:01:45]}  Re8 {[%clk 0:02:02]} 22. Re3 {[%clk 0:01:42]}  Qd7 {[%clk 0:01:58]} 23. Rxe8+ {[%clk 0:01:42]}  Qxe8 {[%clk 0:01:57]} 24. h4 {[%clk 0:01:33]}  Ne6 {[%clk 0:01:43]} 25. d5 {[%clk 0:01:27]}  Nd4 {[%clk 0:01:41]} 26. Qd3 {[%clk 0:01:19]}  Qe5 {[%clk 0:01:35]} 27. dxc6 {[%clk 0:01:10]}  bxc6 {[%clk 0:01:34]} 28. b4 {[%clk 0:01:10]}  Kg7 {[%clk 0:01:28]} 29. a4 {[%clk 0:01:08]}  f5 {[%clk 0:01:19]} 30. b5 {[%clk 0:01:03]}  cxb5 {[%clk 0:01:18]} 31. cxb5 {[%clk 0:01:01]}  f4 {[%clk 0:01:17]} 32. g4 {[%clk 0:00:58]}  f5 {[%clk 0:00:24]} 33. g5 {[%clk 0:00:49]}  h6 {[%clk 0:00:24]} 34. gxh6+ {[%clk 0:00:34]}  Kxh6 {[%clk 0:00:24]} 35. Qa3 {[%clk 0:00:35]}  Qf6 {[%clk 0:00:17]} 36. Qc3 {[%clk 0:00:19]}  Qd6 {[%clk 0:00:11]} 37. a5 {[%clk 0:00:16]}  Kh7 {[%clk 0:00:04]} 38. b6 {[%clk 0:00:16]}  axb6 {[%clk 0:00:04]} 39. a6 {[%clk 0:00:16]}  Nb5 {[%clk 0:00:03]} 40. Qb3 {[%clk 0:00:12]}  Nc7 {[%clk 0:00:03]} 41. a7 {[%clk 0:00:11]}  Qd8 {[%clk 0:00:01]} 42. Qxb6 {[%clk 0:00:10]}  Kh6 {[%clk 0:00:02]} 43. a8=Q {[%clk 0:00:05]}  Qxh4 {[%clk 0:00:02]} 44. Qxc7 {[%clk 0:00:04]}  Qg5+ {[%clk 0:00:01]} 45. Kf1 {[%clk 0:00:05]}  Qg1+ {[%clk 0:00:01]} 46. Kxg1 {[%clk 0:00:04]}  Kg5 {[%clk 0:00:02]} 47. Qe7+ {[%clk 0:00:05]} 1-0


[Site "https://www.chess.com"]